[Event "Australian-ch 2018"]
[Site "Sydney"]
[Date "2018.01.03"]
[Round "1"]
[White "Xie, George Wendi"]
[Black "Willathgamuwa, Kevin"]
[Result "1/2-1/2"]
[ECO "D37"]
[WhiteElo "2369"]
[BlackElo "2113"]
[Annotator "ChessBase"]
[PlyCount "139"]
[EventDate "2018.01.02"]
[EventType "tourn"]
[EventCountry "AUS"]
[SourceTitle "playchess.com"]
[Source "ChessBase"]
[SourceQuality "1"]
[TimeControl "40/5400+30:1800+30"]

1. Nf3 {[%emt 0:00:00]} d5 {[%emt 0:00:05]} 2. d4 {[%emt 0:00:00]} Nf6 {[%emt 0:00:06]} 3. c4 {[%emt 0:00:00]} e6 {[%emt 0:00:05]} 4. Nc3 {[%emt 0:00:00]} Be7 {[%emt 0:00:05]} 5. Bf4 {[%emt 0:00:00]} O-O {[%emt 0:00:08]} 6. e3 {[%emt 0:00:00]} b6 {[%emt 0:00:20]} 7. Rc1 {[%emt 0:01:42]} c6 {[%emt 0:02:59]} 8. cxd5 {[%emt 0:02:20]} cxd5 {[%emt 0:00:16]} 9. a3 {[%emt 0:00:05]} Bb7 {[%emt 0:01:27]} 10. Be2 {[%emt 0:00:37]} Nc6 {[%emt 0:00:11]} 11. h3 {[%emt 0:00:42]} Rc8 {[%emt 0:01:34]} 12. O-O {[%emt 0:00:30]} Na5 {[%emt 0:06:07]} 13. Nb5 {[%emt 0:10:03]} Rxc1 {[%emt 0:15:55]} 14. Qxc1 {[%emt 0:00:01]} a6 {[%emt 0:02:02]} 15. Bc7 {[%emt 0:04:11]} Qa8 {[%emt 0:00:55]} 16. Nd6 {[%emt 0:06:38]} Bxd6 {[%emt 0:02:13]} 17. Bxd6 {[%emt 0:00:21]} Rc8 {[%emt 0:00:19]} 18. Qb1 {[%emt 0:00:05]} Ne4 {[%emt 0:01:36]} 19. Bf4 {[%emt 0:00:06]} Nb3 {[%emt 0:01:22]} 20. Bd3 {[%emt 0:10:04]} a5 {[%emt 0:07:47]} 21. Rd1 {[%emt 0:03:51]} Ba6 {[%emt 0:08:21]} 22. a4 {[%emt 0:00:06]} Bxd3 {[%emt 0:05:58]} 23. Qxd3 {[%emt 0:00:08]} Nc1 {[%emt 0:00:30]} 24. Qf1 {[%emt 0:12:02]} Qc6 {[%emt 0:01:22]} 25. Ne5 {[%emt 0:00:21]} Qc2 {[%emt 0:00:59]} 26. f3 {[%emt 0:00:07]} Nd6 {[%emt 0:09:36]} 27. Kh2 {[%emt 0:01:44]} Ne2 {[%emt 0:04:08]} 28. Ng6 {[%emt 0:13:20]} Nf5 {[%emt 0:04:53]} 29. Re1 {[%emt 0:04:00]} hxg6 {[%emt 0:06:52]} 30. Qxe2 {[%emt 0:00:13]} Qxa4 {[%emt 0:00:24]} 31. Qa6 {[%emt 0:00:44]} Qc2 {[%emt 0:03:10]} 32. e4 {[%emt 0:03:06]} Nh4 {[%emt 0:02:40]} 33. Re2 {[%emt 0:00:09]} Qc4 {[%emt 0:00:56]} 34. Qxc4 {[%emt 0:00:07]} Rxc4 {[%emt 0:00:37]} 35. Bg5 {[%emt 0:02:03]} Nxf3+ {[%emt 0:00:28]} 36. gxf3 {[%emt 0:00:05]} Rxd4 {[%emt 0:00:08]} 37. Be3 {[%emt 0:02:33]} Rb4 {[%emt 0:00:48]} 38. exd5 {[%emt 0:00:24]} exd5 {[%emt 0:00:07]} 39. Rd2 {[%emt 0:00:13]} Rb3 {[%emt 0:00:40]} 40. Bd4 {[%emt 0:00:08]} Rxf3 {[%emt 0:30:38]} 41. Bxb6 {[%emt 0:30:04]} a4 {[%emt 0:01:11]} 42. Bc5 {[%emt 0:00:55]} d4 {[%emt 0:01:13]} 43. Kg2 {[%emt 0:01:48]} Rb3 {[%emt 0:00:32]} 44. Ba3 {[%emt 0:00:09]} d3 {[%emt 0:01:17]} 45. Kf3 {[%emt 0:00:27]} Kh7 {[%emt 0:02:08]} 46. Ke3 {[%emt 0:03:14]} Kh6 {[%emt 0:01:11]} 47. Rf2 {[%emt 0:13:39]} f5 {[%emt 0:03:34]} 48. Kd2 {[%emt 0:00:03]} Kg5 {[%emt 0:00:48]} 49. Rg2+ {[%emt 0:00:43]} Kh5 {[%emt 0:01:04]} 50. h4 {[%emt 0:00:06]} f4 {[%emt 0:03:14]} 51. Rg5+ {[%emt 0:01:10]} Kxh4 {[%emt 0:00:00]} 52. Rxg6 {[%emt 0:00:00]} Rb7 {[%emt 0:00:00]} 53. Kxd3 {[%emt 0:00:00]} Ra7 {[%emt 0:00:00]} 54. Ke4 {[%emt 0:00:00]} Kh5 {[%emt 0:00:00]} 55. Rg1 {[%emt 0:00:00]} g5 {[%emt 0:00:00]} 56. Bd6 {[%emt 0:00:00]} Ra5 {[%emt 0:00:00]} 57. Be5 {[%emt 0:00:00]} a3 {[%emt 0:00:00]} 58. b4 {[%emt 0:00:00]} Ra4 {[%emt 0:00:00]} 59. Kf5 {[%emt 0:00:00]} Kh4 {[%emt 0:00:00]} 60. b5 {[%emt 0:00:00]} Rb4 {[%emt 0:00:00]} 61. Ra1 {[%emt 0:00:00]} Rxb5 {[%emt 0:00:00]} 62. Rxa3 {[%emt 0:00:00]} Rc5 {[%emt 0:00:00]} 63. Ra1 {[%emt 0:00:00]} Kg3 {[%emt 0:00:00]} 64. Rg1+ {[%emt 0:00:00]} Kf2 {[%emt 0:00:00]} 65. Rxg5 {[%emt 0:00:00]} f3 {[%emt 0:00:25]} 66. Ke4 {[%emt 0:00:00]} Ke2 {[%emt 0:00:20]} 67. Rf5 {[%emt 0:00:00]} f2 {[%emt 0:01:00]} 68. Rxf2+ {[%emt 0:00:00]} Kxf2 {[%emt 0:00:06]} 69. Bd4+ {[%emt 0:00:00]} Ke2 {[%emt 0:00:07]} 70. Bxc5 1/2-1/2

[Event "Australian-ch 2018"]
[Site "Sydney"]
[Date "2018.01.03"]
[Round "1"]
[White "Reilly, Tim"]
[Black "Illingworth, Max"]
[Result "0-1"]
[ECO "E48"]
[WhiteElo "2169"]
[BlackElo "2494"]
[Annotator "RC"]
[PlyCount "62"]
[EventDate "2018.01.02"]
[EventType "tourn"]
[EventCountry "AUS"]
[SourceTitle "playchess.com"]
[Source "ChessBase"]
[SourceQuality "1"]
[TimeControl "40/5400+30:1800+30"]

1. d4 {[%emt 0:00:00]} Nf6 {[%emt 0:00:06]} 2. c4 {[%emt 0:00:00]} e6 {[%emt 0:00:04]} 3. Nc3 {[%emt 0:00:04]} Bb4 {[%emt 0:00:06]} 4. e3 {[%emt 0:00:14]} O-O {[%emt 0:00:07]} 5. Bd3 {[%emt 0:00:08]} d5 {[%emt 0:00:04]} 6. cxd5 {[%emt 0:00:17]} exd5 {[%emt 0:00:04]} 7. Nge2 {[%emt 0:00:14]} Re8 {[%emt 0:00:04]} 8. Bd2 {[%emt 0:00:57]} Bd6 {[%emt 0:00:08]} 9. Rc1 {[%emt 0:00:35]} a6 {[%emt 0:00:05]} 10. Qb3 {[%emt 0:03:54]} c6 {[%emt 0:00:17]} 11. O-O {[%emt 0:04:16]} Nbd7 {[%emt 0:00:04]} 12. f3 {[%emt 0:02:59]} b5 {[%emt 0:02:28]} 13. Bb1 {[%emt 0:36:10]} Bb7 {[%emt 0:01:25]} 14. Qc2 {[%emt 0:12:53]} c5 {[%emt 0:02:03]} 15. dxc5 {[%emt 0:01:22]} Bxc5 {[%emt 0:00:17]} 16. Nd4 {[%emt 0:00:55]} Rc8 {[%emt 0:00:17]} 17. Qf5 {[%emt 0:02:20]} Ne5 {[%emt 0:04:13]} 18. b3 {[%emt 0:01:11]} Qb6 {[%emt 0:03:54]} 19. Nce2 {[%emt 0:01:44]} b4 {[%emt 0:00:51]} 20. g4 {[%emt 0:08:11]} Ng6 {[%emt 0:03:42]} 21. Kh1 {[%emt 0:09:44]} a5 {[%emt 0:00:34]} 22. g5 {[%emt 0:07:58]} Re5 {[%emt 0:00:35]} 23. Qh3 {[%emt 0:00:58]} Rxg5 {[%emt 0:00:45]} 24. f4 {[%emt 0:00:39]} Rh5 {[%emt 0:00:47]} 25. Qf3 {[%emt 0:00:44]} Nh4 {[%emt 0:03:44]} 26. Qg3 {[%emt 0:00:38]} Ne4 {[%emt 0:04:50]} 27. Bxe4 {[%emt 0:01:05]} dxe4 {[%emt 0:00:06]} 28. Rg1 {[%emt 0:01:51]} Qh6 {[%emt 0:02:19]} 29. f5 {[%emt 0:01:47]} Nxf5 {[%emt 0:04:11]} 30. Nxf5 {[%emt 0:00:39]} Rxf5 {[%emt 0:00:18]} 31. Nf4 {[%emt 0:00:30]} Rxf4 {[%emt 0:00:48]} 0-1

[Event "Australian-ch 2018"]
[Site "Sydney"]
[Date "2018.01.03"]
[Round "1"]
[White "O'Chee, Kevin"]
[Black "Lane, Gary W"]
[Result "1-0"]
[ECO "D03"]
[WhiteElo "2120"]
[BlackElo "2401"]
[Annotator "ChessBase"]
[PlyCount "171"]
[EventDate "2018.01.02"]
[EventType "tourn"]
[EventCountry "AUS"]
[SourceTitle "playchess.com"]
[Source "ChessBase"]
[SourceQuality "1"]
[TimeControl "40/5400+30:1800+30"]

1. d4 {[%emt 0:00:03]} d5 {[%emt 0:00:16]} 2. Nf3 {[%emt 0:00:36]} Nf6 {[%emt 0:00:18]} 3. Bg5 {[%emt 0:00:23]} Ne4 {[%emt 0:01:03]} 4. Bf4 {[%emt 0:00:11]} c5 {[%emt 0:00:11]} 5. dxc5 {[%emt 0:01:15]} e6 {[%emt 0:03:00]} 6. Nbd2 {[%emt 0:01:19]} Nxc5 {[%emt 0:06:27]} 7. e3 {[%emt 0:01:31]} Nc6 {[%emt 0:00:33]} 8. Be2 {[%emt 0:00:35]} Be7 {[%emt 0:00:52]} 9. O-O {[%emt 0:01:06]} O-O {[%emt 0:00:05]} 10. Nb3 {[%emt 0:01:28]} Na4 {[%emt 0:08:06]} 11. Qc1 {[%emt 0:06:56]} Qb6 {[%emt 0:08:12]} 12. h3 {[%emt 0:01:37]} Bf6 {[%emt 0:01:20]} 13. c3 {[%emt 0:00:32]} e5 {[%emt 0:03:11]} 14. Bg3 {[%emt 0:00:59]} Be6 {[%emt 0:00:37]} 15. Rd1 {[%emt 0:03:19]} Rac8 {[%emt 0:02:27]} 16. Rd2 {[%emt 0:02:29]} d4 {[%emt 0:08:06]} 17. exd4 {[%emt 0:10:29]} exd4 {[%emt 0:03:10]} 18. Nbxd4 {[%emt 0:04:34]} Nxd4 {[%emt 0:06:53]} 19. Nxd4 {[%emt 0:00:46]} Bd5 {[%emt 0:00:19]} 20. Qc2 {[%emt 0:13:28]} Nc5 {[%emt 0:05:29]} 21. Bf3 {[%emt 0:01:29]} Rfd8 {[%emt 0:05:03]} 22. Bxd5 {[%emt 0:02:07]} Rxd5 {[%emt 0:00:06]} 23. Rad1 {[%emt 0:00:32]} g6 {[%emt 0:04:40]} 24. Nb3 {[%emt 0:02:15]} Rxd2 {[%emt 0:02:22]} 25. Rxd2 {[%emt 0:04:26]} Ne6 {[%emt 0:00:08]} 26. Rd6 {[%emt 0:05:09]} Qb5 {[%emt 0:00:15]} 27. Qe4 {[%emt 0:01:04]} Re8 {[%emt 0:03:00]} 28. Qd5 {[%emt 0:05:43]} Qe2 {[%emt 0:01:41]} 29. Qd2 {[%emt 0:03:53]} Qb5 {[%emt 0:02:09]} 30. Rd7 {[%emt 0:03:20]} Ng5 {[%emt 0:10:42]} 31. Rd5 {[%emt 0:02:42]} Re1+ {[%emt 0:00:08]} 32. Qxe1 {[%emt 0:00:47]} Qxd5 {[%emt 0:00:08]} 33. Qd2 {[%emt 0:01:12]} Qf5 {[%emt 0:01:57]} 34. Kh2 {[%emt 0:07:34]} h5 {[%emt 0:00:08]} 35. Nd4 {[%emt 0:03:02]} Qd5 {[%emt 0:03:50]} 36. Bf4 {[%emt 0:00:32]} Ne4 {[%emt 0:03:57]} 37. Qe3 {[%emt 0:00:13]} g5 {[%emt 0:02:01]} 38. Bb8 {[%emt 0:00:28]} a6 {[%emt 0:00:22]} 39. f3 {[%emt 0:01:14]} Nc5 {[%emt 0:01:36]} 40. a3 h4 {[%emt 0:31:40]} 41. f4 {[%emt 0:35:13]} Nd7 {[%emt 0:00:00]} 42. Bc7 {[%emt 0:00:00]} Nf8 {[%emt 0:00:00]} 43. Qf3 {[%emt 0:00:00]} Qd7 {[%emt 0:00:00]} 44. Be5 {[%emt 0:00:00]} Bd8 {[%emt 0:00:00]} 45. fxg5 {[%emt 0:00:00]} Bxg5 {[%emt 0:00:00]} 46. Qf5 {[%emt 0:00:00]} f6 {[%emt 0:00:00]} 47. Qxd7 {[%emt 0:00:00]} Nxd7 {[%emt 0:00:00]} 48. Bd6 {[%emt 0:00:00]} Bc1 {[%emt 0:00:00]} 49. b3 {[%emt 0:00:00]} Bb2 {[%emt 0:00:00]} 50. Nf5 {[%emt 0:00:00]} Kf7 {[%emt 0:00:00]} 51. Nxh4 {[%emt 0:00:00]} Ke6 {[%emt 0:00:00]} 52. Bf4 {[%emt 0:00:00]} Bxc3 {[%emt 0:00:00]} 53. Be3 {[%emt 0:00:00]} f5 {[%emt 0:00:49]} 54. Nf3 {[%emt 0:00:00]} Bb2 {[%emt 0:00:39]} 55. a4 {[%emt 0:00:00]} Kd5 {[%emt 0:00:41]} 56. Kg3 {[%emt 0:00:00]} Ke4 {[%emt 0:01:23]} 57. Kf2 {[%emt 0:02:33]} f4 {[%emt 0:00:56]} 58. Nd2+ {[%emt 0:00:18]} Kf5 {[%emt 0:01:11]} 59. Ba7 {[%emt 0:00:16]} b6 {[%emt 0:00:56]} 60. Nc4 {[%emt 0:00:21]} Bd4+ {[%emt 0:00:06]} 61. Kf3 {[%emt 0:00:13]} Bc5 {[%emt 0:01:02]} 62. a5 {[%emt 0:02:44]} b5 {[%emt 0:00:04]} 63. Bxc5 {[%emt 0:00:15]} bxc4 {[%emt 0:00:05]} 64. b4 {[%emt 0:00:36]} c3 {[%emt 0:01:42]} 65. Bd4 {[%emt 0:01:40]} c2 {[%emt 0:01:11]} 66. Bb2 {[%emt 0:00:05]} Ne5+ {[%emt 0:01:17]} 67. Ke2 {[%emt 0:00:09]} Nc6 {[%emt 0:00:05]} 68. b5 {[%emt 0:03:20]} axb5 {[%emt 0:00:38]} 69. a6 {[%emt 0:00:08]} Ke4 {[%emt 0:00:19]} 70. Kd2 {[%emt 0:00:32]} f3 {[%emt 0:00:17]} 71. gxf3+ {[%emt 0:00:29]} Kxf3 {[%emt 0:00:02]} 72. Bc3 {[%emt 0:01:56]} Kg3 {[%emt 0:02:01]} 73. Kxc2 {[%emt 0:00:09]} Kxh3 {[%emt 0:00:04]} 74. Kd3 {[%emt 0:00:14]} b4 {[%emt 0:00:58]} 75. Bb2 {[%emt 0:00:43]} Kg4 {[%emt 0:00:25]} 76. Kc4 {[%emt 0:00:52]} Kf5 {[%emt 0:00:12]} 77. Kc5 {[%emt 0:00:12]} Na7 {[%emt 0:00:36]} 78. Kxb4 {[%emt 0:00:10]} Ke6 {[%emt 0:00:25]} 79. Kc5 {[%emt 0:00:07]} Kd7 {[%emt 0:00:47]} 80. Be5 {[%emt 0:00:40]} Nc8 {[%emt 0:01:12]} 81. Bb8 {[%emt 0:00:23]} Ke8 {[%emt 0:01:41]} 82. Kc6 {[%emt 0:00:24]} Kd8 {[%emt 0:00:04]} 83. Kb7 {[%emt 0:00:37]} Kd7 {[%emt 0:00:04]} 84. Be5 {[%emt 0:01:34]} Kd8 {[%emt 0:00:11]} 85. Bf6+ {[%emt 0:00:43]} Kd7 {[%emt 0:00:02]} 86. Be7 {[%emt 0:00:15]} 1-0

[Event "Australian-ch 2018"]
[Site "Sydney"]
[Date "2018.01.03"]
[Round "2"]
[White "Smirnov, Anton"]
[Black "Brown, Andrew"]
[Result "1-0"]
[ECO "C53"]
[WhiteElo "2527"]
[BlackElo "2293"]
[Annotator "ChessBase"]
[PlyCount "71"]
[EventDate "2018.01.02"]
[EventType "tourn"]
[EventCountry "AUS"]
[SourceTitle "playchess.com"]
[Source "ChessBase"]
[SourceQuality "1"]
[TimeControl "40/5400+30:1800+30"]

1. e4 {[%emt 0:00:00]} e5 {[%emt 0:00:09]} 2. Nf3 {[%emt 0:00:33]} Nc6 {[%emt 0:00:09]} 3. Bc4 {[%emt 0:00:04]} Bc5 {[%emt 0:00:42]} 4. c3 {[%emt 0:00:11]} Qe7 {[%emt 0:06:52]} 5. d4 {[%emt 0:00:39]} Bb6 {[%emt 0:02:59]} 6. O-O {[%emt 0:00:43]} Nf6 {[%emt 0:03:40]} 7. a4 {[%emt 0:00:22]} a6 {[%emt 0:01:18]} 8. Re1 {[%emt 0:00:31]} d6 {[%emt 0:00:22]} 9. h3 {[%emt 0:00:05]} h6 {[%emt 0:01:16]} 10. Be3 {[%emt 0:03:51]} g5 {[%emt 0:16:41]} 11. dxe5 {[%emt 0:06:55]} dxe5 {[%emt 0:00:44]} 12. Bxb6 {[%emt 0:00:12]} cxb6 {[%emt 0:00:05]} 13. Nh2 g4 {[%emt 0:18:10]} 14. hxg4 {[%emt 0:11:04]} Rg8 {[%emt 0:02:29]} 15. Be2 {[%emt 0:03:15]} Be6 {[%emt 0:06:32]} 16. Na3 {[%emt 0:05:27]} Rd8 {[%emt 0:14:56]} 17. Qc1 {[%emt 0:00:33]} Rd6 {[%emt 0:03:05]} 18. Nc2 {[%emt 0:17:01]} Nxe4 {[%emt 0:04:17]} 19. Qe3 {[%emt 0:05:38]} Nf6 {[%emt 0:01:09]} 20. Rad1 {[%emt 0:03:20]} Nd5 {[%emt 0:03:10]} 21. Qf3 {[%emt 0:01:41]} h5 {[%emt 0:06:23]} 22. gxh5 {[%emt 0:03:55]} Nf4 {[%emt 0:01:17]} 23. Ne3 {[%emt 0:00:46]} Nh3+ {[%emt 0:03:28]} 24. Kf1 {[%emt 0:00:05]} Ng5 {[%emt 0:00:10]} 25. Qg3 {[%emt 0:00:06]} Kf8 {[%emt 0:01:33]} 26. Qh4 {[%emt 0:00:15]} Rxd1 {[%emt 0:01:09]} 27. Rxd1 {[%emt 0:00:08]} Qf6 {[%emt 0:00:39]} 28. Nf3 {[%emt 0:01:50]} Nh7 {[%emt 0:00:33]} 29. b4 {[%emt 0:03:52]} Qxh4 {[%emt 0:00:25]} 30. Nxh4 {[%emt 0:00:01]} Rg5 {[%emt 0:00:28]} 31. g4 {[%emt 0:01:08]} Nf6 {[%emt 0:00:34]} 32. Nhf5 {[%emt 0:00:06]} Bxf5 {[%emt 0:00:30]} 33. Nxf5 {[%emt 0:00:02]} Nxh5 {[%emt 0:00:32]} 34. b5 {[%emt 0:00:06]} axb5 {[%emt 0:00:18]} 35. axb5 {[%emt 0:00:01]} Rxf5 {[%emt 0:00:41]} 36. gxf5 {[%emt 0:00:09]} 1-0

[Event "Australian-ch 2018"]
[Site "Sydney"]
[Date "2018.01.03"]
[Round "2"]
[White "Illingworth, Max"]
[Black "Guichard, Pauline"]
[Result "1-0"]
[ECO "B00"]
[WhiteElo "2494"]
[BlackElo "2269"]
[Annotator "RC"]
[PlyCount "99"]
[EventDate "2018.01.02"]
[EventType "tourn"]
[EventCountry "AUS"]
[SourceTitle "playchess.com"]
[Source "ChessBase"]
[SourceQuality "1"]
[TimeControl "40/5400+30:1800+30"]

1. e4 {[%emt 0:00:00]} d6 {[%emt 0:00:06]} 2. d4 {[%emt 0:00:00]} g6 {[%emt 0:00:07]} 3. c4 {[%emt 0:00:00]} Bg7 {[%emt 0:00:09]} 4. Nc3 {[%emt 0:00:00]} e5 {[%emt 0:00:18]} 5. Nge2 {[%emt 0:00:00]} Ne7 {[%emt 0:09:58]} 6. Be3 {[%emt 0:00:24]} Nd7 {[%emt 0:00:32]} 7. h4 {[%emt 0:01:30]} f5 {[%emt 0:04:50]} 8. f3 {[%emt 0:04:19]} O-O {[%emt 0:01:09]} 9. Qd2 {[%emt 0:02:49]} f4 {[%emt 0:01:56]} 10. Bf2 {[%emt 0:00:08]} a6 {[%emt 0:02:03]} 11. d5 {[%emt 0:03:18]} Nf6 {[%emt 0:07:51]} 12. c5 {[%emt 0:02:36]} dxc5 13. Bxc5 {[%emt 0:04:18]} b6 {[%emt 0:05:33]} 14. Ba3 {[%emt 0:07:03]} Ne8 {[%emt 0:00:30]} 15. b3 {[%emt 0:01:43]} Nd6 {[%emt 0:00:35]} 16. O-O-O Kh8 {[%emt 0:06:51]} 17. Kb1 {[%emt 0:05:29]} Ng8 {[%emt 0:01:42]} 18. Nc1 {[%emt 0:04:35]} Nf6 {[%emt 0:01:37]} 19. Bd3 {[%emt 0:07:53]} Bd7 {[%emt 0:03:22]} 20. Qf2 {[%emt 0:02:35]} Nh5 {[%emt 0:02:51]} 21. N1e2 {[%emt 0:00:17]} Rf7 {[%emt 0:06:20]} 22. Rc1 {[%emt 0:03:29]} Bf8 {[%emt 0:03:56]} 23. Bb2 {[%emt 0:01:15]} Bg7 {[%emt 0:01:06]} 24. Rc2 {[%emt 0:02:01]} a5 {[%emt 0:01:52]} 25. Ka1 {[%emt 0:05:47]} a4 {[%emt 0:01:41]} 26. b4 {[%emt 0:02:26]} a3 {[%emt 0:04:18]} 27. Bc1 {[%emt 0:00:08]} Bf6 {[%emt 0:00:56]} 28. Bd2 {[%emt 0:04:41]} Ra7 {[%emt 0:07:58]} 29. Be1 {[%emt 0:01:47]} Be8 {[%emt 0:03:32]} 30. Qg1 {[%emt 0:01:27]} c5 {[%emt 0:02:41]} 31. bxc5 {[%emt 0:08:05]} bxc5 {[%emt 0:00:05]} 32. Bf2 {[%emt 0:00:31]} Nb7 {[%emt 0:01:54]} 33. Bb5 {[%emt 0:02:56]} Ra5 {[%emt 0:02:05]} 34. Qb1 {[%emt 0:02:13]} Nd6 {[%emt 0:03:41]} 35. Bxe8 {[%emt 0:01:49]} Nxe8 {[%emt 0:00:04]} 36. Nc1 {[%emt 0:01:24]} Ra8 {[%emt 0:05:05]} 37. Nb3 {[%emt 0:04:11]} Rb7 {[%emt 0:03:35]} 38. Ne2 {[%emt 0:03:57]} Be7 {[%emt 0:05:20]} 39. Qc1 {[%emt 0:01:05]} Rb5 {[%emt 0:01:07]} 40. Nxc5 {[%emt 0:02:52]} Nd6 {[%emt 0:30:40]} 41. Ne6 {[%emt 0:32:15]} Qa5 {[%emt 0:00:00]} 42. Nc7 {[%emt 0:00:00]} Rab8 {[%emt 0:00:00]} 43. Nxb5 {[%emt 0:00:00]} Qxb5 {[%emt 0:00:00]} 44. Bc5 {[%emt 0:00:00]} Nc4 {[%emt 0:00:00]} 45. Rxc4 {[%emt 0:00:00]} Bxc5 {[%emt 0:00:00]} 46. Rxc5 {[%emt 0:00:00]} Qxe2 {[%emt 0:00:00]} 47. Rc8+ {[%emt 0:00:00]} Rxc8 {[%emt 0:00:00]} 48. Qxc8+ {[%emt 0:00:00]} Kg7 {[%emt 0:00:00]} 49. Rb1 {[%emt 0:00:00]} Nf6 {[%emt 0:00:00]} 50. Qc7+ {[%emt 0:00:00]} 1-0

[Event "Australian-ch 2018"]
[Site "Sydney"]
[Date "2018.01.03"]
[Round "2"]
[White "Lane, Gary W"]
[Black "Parle, Hughston"]
[Result "1-0"]
[ECO "A00"]
[WhiteElo "2401"]
[BlackElo "1961"]
[Annotator "ChessBase"]
[PlyCount "69"]
[EventDate "2018.01.02"]
[EventType "tourn"]
[EventCountry "AUS"]
[SourceTitle "playchess.com"]
[Source "ChessBase"]
[SourceQuality "1"]
[TimeControl "40/5400+30:1800+30"]

1. e4 c5 2. Nf3 d6 3. d4 cxd4 4. Qxd4 Nc6 5. Bb5 Bd7 6. Bxc6 Bxc6 7. Nc3 Nf6 8. Bg5 e6 9. O-O-O Be7 10. Qd3 Qa5 11. Bd2 Ng4 12. Be1 Qb6 13. Nd4 Ne5 14. Qe2 Bg5+ 15. Kb1 a6 16. g3 Bf6 17. f4 Nd7 18. Bf2 Nc5 19. Rhe1 O-O-O 20. e5 dxe5 21. Nb3 exf4 22. Nxc5 f3 23. Qc4 Qc7 24. Nd3 b5 25. Qc5 Rd6 26. Nb4 Rhd8 27. Rxd6 Rxd6 28. Nxa6 Qd7 29. a3 Kd8 30. Qb6+ Ke8 31. Nc7+ Kf8 32. Bc5 f2 33. Rf1 Bd8 34. N3xb5 Bxc7 35. Qxc7 1-0

[Event "Australian-ch 2018"]
[Site "Sydney"]
[Date "2018.01.03"]
[Round "2"]
[White "Solomon, Stephen J"]
[Black "Yang, Ray"]
[Result "1-0"]
[ECO "A00"]
[WhiteElo "2365"]
[BlackElo "2003"]
[Annotator "ChessBase"]
[PlyCount "123"]
[EventDate "2018.01.02"]
[EventType "tourn"]
[EventCountry "AUS"]
[SourceTitle "playchess.com"]
[Source "ChessBase"]
[SourceQuality "1"]
[TimeControl "40/5400+30:1800+30"]

1. e4 e6 2. d4 d5 3. Nc3 Bb4 4. e5 c5 5. Bd2 Nh6 6. a3 Bxc3 7. Bxc3 cxd4 8. Bxd4 Nc6 9. c3 Nf5 10. Nf3 Nfxd4 11. cxd4 Bd7 12. b4 O-O 13. Bd3 f5 14. exf6 Qxf6 15. O-O a6 16. Qd2 Be8 17. Rfe1 h6 18. Qe3 Bh5 19. Ne5 Nxe5 20. dxe5 Qf7 21. Rac1 Rac8 22. g3 Bf3 23. Rxc8 Rxc8 24. Rc1 Rxc1+ 25. Qxc1 g5 26. Kf1 Kg7 27. Ke1 Bh5 28. f4 gxf4 29. Qxf4 Qxf4 30. gxf4 Bg6 31. Be2 Bf5 32. h4 Kg6 33. h5+ Kf7 34. Kd2 Ke7 35. Kc3 Kd7 36. a4 Kc6 37. a5 Bh3 38. b5+ axb5 39. Kb4 Kc7 40. Kxb5 Bf5 41. Kc5 Bh3 42. Bd3 Bg4 43. Bg6 Bf3 44. f5 Kd7 45. f6 Be2 46. Kb6 d4 47. Bc2 Bf3 48. Bd3 Ke8 49. Kc7 Bxh5 50. Be4 Be2 51. Bxb7 d3 52. a6 d2 53. a7 d1=Q 54. a8=Q+ Kf7 55. Bc6 Kg6 56. Qg8+ Kh5 57. f7 Qa1 58. f8=Q Qa7+ 59. Kd8 Qb8+ 60. Ke7 Qb4+ 61. Kf7 Qf4+ 62. Ke8 1-0

[Event "Australian-ch 2018"]
[Site "Sydney"]
[Date "2018.01.03"]
[Round "2"]
[White "Zhang, Jilin"]
[Black "Huynh, Arthur"]
[Result "1-0"]
[ECO "C45"]
[WhiteElo "2267"]
[BlackElo "2042"]
[Annotator "ChessBase"]
[PlyCount "75"]
[EventDate "2018.01.02"]
[EventType "tourn"]
[EventCountry "AUS"]
[SourceTitle "playchess.com"]
[Source "ChessBase"]
[SourceQuality "1"]
[TimeControl "40/5400+30:1800+30"]

1. e4 {[%emt 0:00:00]} e5 {[%emt 0:00:12]} 2. Nf3 {[%emt 0:00:00]} Nc6 {[%emt 0:00:14]} 3. d4 {[%emt 0:00:34]} exd4 {[%emt 0:00:24]} 4. Nxd4 {[%emt 0:00:07]} Nf6 {[%emt 0:00:15]} 5. Nxc6 {[%emt 0:00:11]} bxc6 {[%emt 0:03:48]} 6. e5 {[%emt 0:00:05]} Qe7 {[%emt 0:00:25]} 7. Qe2 {[%emt 0:00:04]} Nd5 {[%emt 0:00:22]} 8. c4 {[%emt 0:00:05]} Ba6 {[%emt 0:00:34]} 9. b3 {[%emt 0:02:06]} g6 {[%emt 0:01:06]} 10. Bb2 {[%emt 0:04:53]} Bg7 {[%emt 0:01:10]} 11. g3 {[%emt 0:00:50]} O-O {[%emt 0:01:06]} 12. Bg2 {[%emt 0:00:10]} Rae8 {[%emt 0:00:53]} 13. O-O {[%emt 0:00:47]} Bxe5 {[%emt 0:00:28]} 14. Qxe5 {[%emt 0:00:35]} Qxe5 {[%emt 0:00:11]} 15. Bxe5 {[%emt 0:00:03]} Rxe5 {[%emt 0:00:19]} 16. cxd5 {[%emt 0:00:06]} Bxf1 {[%emt 0:00:11]} 17. Kxf1 {[%emt 0:00:05]} cxd5 {[%emt 0:00:10]} 18. Nc3 {[%emt 0:00:06]} c6 {[%emt 0:00:18]} 19. Rd1 {[%emt 0:00:32]} Rfe8 {[%emt 0:01:35]} 20. Bf3 {[%emt 0:01:52]} f5 {[%emt 0:03:56]} 21. Na4 {[%emt 0:02:32]} Kf7 {[%emt 0:04:01]} 22. Nc5 {[%emt 0:07:46]} R5e7 {[%emt 0:20:50]} 23. Rc1 {[%emt 0:08:42]} Rb8 24. Nd3 {[%emt 0:02:44]} Rb6 {[%emt 0:08:31]} 25. Rc5 {[%emt 0:10:31]} Ke8 {[%emt 0:04:56]} 26. h3 {[%emt 0:05:05]} Kd8 {[%emt 0:04:30]} 27. Ra5 {[%emt 0:09:51]} d6 {[%emt 0:05:47]} 28. Ra4 {[%emt 0:01:15]} Rbb7 {[%emt 0:02:47]} 29. Ra6 {[%emt 0:05:24]} Rb6 {[%emt 0:00:27]} 30. Ra4 {[%emt 0:00:58]} Rbb7 {[%emt 0:00:32]} 31. b4 {[%emt 0:11:02]} Kc7 {[%emt 0:06:15]} 32. Ra6 {[%emt 0:00:59]} Re8 {[%emt 0:03:50]} 33. a4 {[%emt 0:02:02]} Ra8 {[%emt 0:01:29]} 34. b5 {[%emt 0:00:45]} Rb6 {[%emt 0:00:12]} 35. Ra5 {[%emt 0:00:25]} cxb5 {[%emt 0:06:10]} 36. Bxd5 {[%emt 0:00:10]} Rab8 {[%emt 0:03:09]} 37. Rxa7+ {[%emt 0:02:15]} Kd8 {[%emt 0:00:24]} 38. a5 1-0